{"text_format":"3","workbook":"xlsx","n_sheets":4,"sheets":["Pregled proračuna","Povzetek proračuna","Mesečni stroški","Dodatni podatki"],"not_rendered":{"charts":1,"images":4,"defined_names":7,"pivot_tables":2},"read":"whole","date_system":"1900"}

{"sheet":"Pregled proračuna","index":0,"n_rows":12,"n_cols":8,"rows_kept":12,"merged":[[1,1,1,2],[2,1,2,2],[3,1,3,2],[4,1,4,2]]}
[{"$nulls":7}," "]
[null,"Bilanca"]
[null,"Predvidena bilanca",null,{"$f":"Predvideni_dohodki-Predvideni_stroški","v":{"v":1585,"d":"1,585 €"}},null,"Predvideni minus stroški"]
[null,"Dejanska bilanca ",null,{"$f":"Dejanski_dohodki-Dejanski_stroški","v":{"v":1740,"d":"1,740 €"}},null,"Dejanski minus stroški"]
[null,"Razlika",null,{"$f":"D4-D3","v":{"v":155,"d":"155 €"}},null,"Dejanski minus predvideni"]
[null,"Dohodek",{"$nulls":3},"Stroški"]
[null,null,"Predvideni","Dejanski",null,"Predvideni","Dejanski"]
[null,"Dohodek 1",{"v":6000,"d":"6,000 €"},{"v":5800,"d":"5,800 €"},null,{"$f":"SUM(Tabela_Mesečni_stroški[Predvideni stroški])","v":{"v":7915,"d":"7,915 €"}},{"$f":"SUM(Tabela_Mesečni_stroški[Dejanski stroški])","v":{"v":7860,"d":"7,860 €"}}]
[null,"Dohodek 2",{"v":1000,"d":"1,000 €"},{"v":2300,"d":"2,300 €"}]
[null,"Dodatni dohodek",{"v":2500,"d":"2,500 €"},{"v":1500,"d":"1,500 €"}]
[null,"Prihodki skupaj",{"$f":"SUM(C8:C10)","v":{"v":9500,"d":"9,500 €"}},{"$f":"SUM(D8:D10)","v":{"v":9600,"d":"9,600 €"}}]
[null,"Razčlenitev dejanskih stroškov"]

{"sheet":"Povzetek proračuna","index":1,"n_rows":41,"n_cols":7,"rows_kept":41}
[null,"Povzetek proračuna",{"$nulls":4}," "]
[]
[null,"Kategorije","Predvideni stroški ","Dejanski stroški ","Razlika "]
[null,"Otroci",{"v":140,"d":"140 €"},{"v":140,"d":"140 €"},{"v":0,"d":"0 €"}]
[null,"Obšolske dejavnosti",{"v":40,"d":"40 €"},{"v":40,"d":"40 €"},{"v":0,"d":"0 €"}]
[null,"Zdravstvene potrebščine",null,null,{"v":0,"d":"0 €"}]
[null,"Šolske potrebščine",null,null,{"v":0,"d":"0 €"}]
[null,"Šolnina",{"v":100,"d":"100 €"},{"v":100,"d":"100 €"},{"v":0,"d":"0 €"}]
[]
[null,"Razvedrilo",{"v":400,"d":"400 €"},{"v":358,"d":"358 €"},{"v":42,"d":"42 €"}]
[null,"Koncerti",{"v":50,"d":"50 €"},{"v":40,"d":"40 €"},{"v":10,"d":"10 €"}]
[null,"Gledališče",{"v":200,"d":"200 €"},{"v":150,"d":"150 €"},{"v":50,"d":"50 €"}]
[null,"Filmi",{"v":50,"d":"50 €"},{"v":28,"d":"28 €"},{"v":22,"d":"22 €"}]
[null,"Glasba (CD-ji, prenosi itd.)",{"v":50,"d":"50 €"},{"v":30,"d":"30 €"},{"v":20,"d":"20 €"}]
[null,"Športni dogodki",{"v":0,"d":"0 €"},{"v":40,"d":"40 €"},{"v":-40,"d":"-40 €"}]
[null,"Video/DVD (nakup)",{"v":20,"d":"20 €"},{"v":50,"d":"50 €"},{"v":-30,"d":"-30 €"}]
[null,"Video/DVD (izposoja)",{"v":30,"d":"30 €"},{"v":20,"d":"20 €"},{"v":10,"d":"10 €"}]
[]
[null,"Hrana",{"v":1100,"d":"1,100 €"},{"v":1320,"d":"1,320 €"},{"v":-220,"d":"-220 €"}]
[]
[null,"Darila in nakazila dobrodelnim ustanovam",{"v":100,"d":"100 €"},{"v":125,"d":"125 €"},{"v":-25,"d":"-25 €"}]
[]
[null,"Nastanitev",{"v":2830,"d":"2,830 €"},{"v":2702,"d":"2,702 €"},{"v":-72,"d":"-72 €"}]
[]
[null,"Zavarovanje",{"v":900,"d":"900 €"},{"v":900,"d":"900 €"},{"v":0,"d":"0 €"}]
[]
[null,"Posojila",{"v":200,"d":"200 €"},{"v":200,"d":"200 €"},{"v":0,"d":"0 €"}]
[]
[null,"Osebna nega",{"v":150,"d":"150 €"},{"v":140,"d":"140 €"},{"v":10,"d":"10 €"}]
[]
[null,"Hišni ljubljenčki",{"v":170,"d":"170 €"},{"v":100,"d":"100 €"},{"v":70,"d":"70 €"}]
[]
[null,"Davki",{"v":300,"d":"300 €"},{"v":300,"d":"300 €"},{"v":0,"d":"0 €"}]
[]
[null,"Prevoz",{"v":1425,"d":"1,425 €"},{"v":1375,"d":"1,375 €"},{"v":50,"d":"50 €"}]
[]
[null,"Prihranki",{"v":200,"d":"200 €"},{"v":200,"d":"200 €"},{"v":0,"d":"0 €"}]
[null,"Naložbeni račun",{"v":200,"d":"200 €"},{"v":200,"d":"200 €"},{"v":0,"d":"0 €"}]
[null,"Varčevalni račun",null,null,{"v":0,"d":"0 €"}]
[]
[null,"Grand Total",{"v":7915,"d":"7,915 €"},{"v":7860,"d":"7,860 €"},{"v":-145,"d":"-145 €"}]

{"sheet":"Mesečni stroški","index":2,"n_rows":61,"n_cols":8,"rows_kept":61}
[{"$nulls":7}," "]
[null,"Opis","Kategorija","Predvideni stroški","Dejanski stroški","Razlika","Pregled dejanskih stroškov"]
[null,"Obšolske dejavnosti","Otroci",{"v":40,"d":"40 €"},{"v":40,"d":"40 €"},{"$f":"IF(OR(Tabela_Mesečni_stroški[[#This Row],[Predvideni stroški]]=\"\",Tabela_Mesečni_stroški[[#This Row],[Dejanski stroški]]=\"\"),\"\",Tabela_Mesečni_stroški[[#This Row],[Predvideni stroški]]-Tabela_Mesečni_stroški[[#This Row],[Dejanski stroški]])","v":{"v":0,"d":"0 €"}},{"$f":"Tabela_Mesečni_stroški[[#This Row],[Dejanski stroški]]","v":40}]
[null,"Zdravstvene potrebščine","Otroci",null,null,{"$f":"IF(OR(Tabela_Mesečni_stroški[[#This Row],[Predvideni stroški]]=\"\",Tabela_Mesečni_stroški[[#This Row],[Dejanski stroški]]=\"\"),\"\",Tabela_Mesečni_stroški[[#This Row],[Predvideni stroški]]-Tabela_Mesečni_stroški[[#This Row],[Dejanski stroški]])","v":""},{"$f":"Tabela_Mesečni_stroški[[#This Row],[Dejanski stroški]]","v":0}]
[null,"Šolske potrebščine","Otroci",null,null,{"$f":"IF(OR(Tabela_Mesečni_stroški[[#This Row],[Predvideni stroški]]=\"\",Tabela_Mesečni_stroški[[#This Row],[Dejanski stroški]]=\"\"),\"\",Tabela_Mesečni_stroški[[#This Row],[Predvideni stroški]]-Tabela_Mesečni_stroški[[#This Row],[Dejanski stroški]])","v":""},{"$f":"Tabela_Mesečni_stroški[[#This Row],[Dejanski stroški]]","v":0}]
[null,"Šolnina","Otroci",{"v":100,"d":"100 €"},{"v":100,"d":"100 €"},{"$f":"IF(OR(Tabela_Mesečni_stroški[[#This Row],[Predvideni stroški]]=\"\",Tabela_Mesečni_stroški[[#This Row],[Dejanski stroški]]=\"\"),\"\",Tabela_Mesečni_stroški[[#This Row],[Predvideni stroški]]-Tabela_Mesečni_stroški[[#This Row],[Dejanski stroški]])","v":{"v":0,"d":"0 €"}},{"$f":"Tabela_Mesečni_stroški[[#This Row],[Dejanski stroški]]","v":100}]
[null,"Koncerti","Razvedrilo",{"v":50,"d":"50 €"},{"v":40,"d":"40 €"},{"$f":"IF(OR(Tabela_Mesečni_stroški[[#This Row],[Predvideni stroški]]=\"\",Tabela_Mesečni_stroški[[#This Row],[Dejanski stroški]]=\"\"),\"\",Tabela_Mesečni_stroški[[#This Row],[Predvideni stroški]]-Tabela_Mesečni_stroški[[#This Row],[Dejanski stroški]])","v":{"v":10,"d":"10 €"}},{"$f":"Tabela_Mesečni_stroški[[#This Row],[Dejanski stroški]]","v":40}]
[null,"Gledališče","Razvedrilo",{"v":200,"d":"200 €"},{"v":150,"d":"150 €"},{"$f":"IF(OR(Tabela_Mesečni_stroški[[#This Row],[Predvideni stroški]]=\"\",Tabela_Mesečni_stroški[[#This Row],[Dejanski stroški]]=\"\"),\"\",Tabela_Mesečni_stroški[[#This Row],[Predvideni stroški]]-Tabela_Mesečni_stroški[[#This Row],[Dejanski stroški]])","v":{"v":50,"d":"50 €"}},{"$f":"Tabela_Mesečni_stroški[[#This Row],[Dejanski stroški]]","v":150}]
[null,"Filmi","Razvedrilo",{"v":50,"d":"50 €"},{"v":28,"d":"28 €"},{"$f":"IF(OR(Tabela_Mesečni_stroški[[#This Row],[Predvideni stroški]]=\"\",Tabela_Mesečni_stroški[[#This Row],[Dejanski stroški]]=\"\"),\"\",Tabela_Mesečni_stroški[[#This Row],[Predvideni stroški]]-Tabela_Mesečni_stroški[[#This Row],[Dejanski stroški]])","v":{"v":22,"d":"22 €"}},{"$f":"Tabela_Mesečni_stroški[[#This Row],[Dejanski stroški]]","v":28}]
[null,"Glasba (CD-ji, prenosi itd.)","Razvedrilo",{"v":50,"d":"50 €"},{"v":30,"d":"30 €"},{"$f":"IF(OR(Tabela_Mesečni_stroški[[#This Row],[Predvideni stroški]]=\"\",Tabela_Mesečni_stroški[[#This Row],[Dejanski stroški]]=\"\"),\"\",Tabela_Mesečni_stroški[[#This Row],[Predvideni stroški]]-Tabela_Mesečni_stroški[[#This Row],[Dejanski stroški]])","v":{"v":20,"d":"20 €"}},{"$f":"Tabela_Mesečni_stroški[[#This Row],[Dejanski stroški]]","v":30}]
[null,"Športni dogodki","Razvedrilo",{"v":0,"d":"0 €"},{"v":40,"d":"40 €"},{"$f":"IF(OR(Tabela_Mesečni_stroški[[#This Row],[Predvideni stroški]]=\"\",Tabela_Mesečni_stroški[[#This Row],[Dejanski stroški]]=\"\"),\"\",Tabela_Mesečni_stroški[[#This Row],[Predvideni stroški]]-Tabela_Mesečni_stroški[[#This Row],[Dejanski stroški]])","v":{"v":-40,"d":"-40 €"}},{"$f":"Tabela_Mesečni_stroški[[#This Row],[Dejanski stroški]]","v":40}]
[null,"Video/DVD (nakup)","Razvedrilo",{"v":20,"d":"20 €"},{"v":50,"d":"50 €"},{"$f":"IF(OR(Tabela_Mesečni_stroški[[#This Row],[Predvideni stroški]]=\"\",Tabela_Mesečni_stroški[[#This Row],[Dejanski stroški]]=\"\"),\"\",Tabela_Mesečni_stroški[[#This Row],[Predvideni stroški]]-Tabela_Mesečni_stroški[[#This Row],[Dejanski stroški]])","v":{"v":-30,"d":"-30 €"}},{"$f":"Tabela_Mesečni_stroški[[#This Row],[Dejanski stroški]]","v":50}]
[null,"Video/DVD (izposoja)","Razvedrilo",{"v":30,"d":"30 €"},{"v":20,"d":"20 €"},{"$f":"IF(OR(Tabela_Mesečni_stroški[[#This Row],[Predvideni stroški]]=\"\",Tabela_Mesečni_stroški[[#This Row],[Dejanski stroški]]=\"\"),\"\",Tabela_Mesečni_stroški[[#This Row],[Predvideni stroški]]-Tabela_Mesečni_stroški[[#This Row],[Dejanski stroški]])","v":{"v":10,"d":"10 €"}},{"$f":"Tabela_Mesečni_stroški[[#This Row],[Dejanski stroški]]","v":20}]
[null,"Kosila v restavracijah","Hrana",{"v":1000,"d":"1,000 €"},{"v":1200,"d":"1,200 €"},{"$f":"IF(OR(Tabela_Mesečni_stroški[[#This Row],[Predvideni stroški]]=\"\",Tabela_Mesečni_stroški[[#This Row],[Dejanski stroški]]=\"\"),\"\",Tabela_Mesečni_stroški[[#This Row],[Predvideni stroški]]-Tabela_Mesečni_stroški[[#This Row],[Dejanski stroški]])","v":{"v":-200,"d":"-200 €"}},{"$f":"Tabela_Mesečni_stroški[[#This Row],[Dejanski stroški]]","v":1200}]
[null,"Živila","Hrana",{"v":100,"d":"100 €"},{"v":120,"d":"120 €"},{"$f":"IF(OR(Tabela_Mesečni_stroški[[#This Row],[Predvideni stroški]]=\"\",Tabela_Mesečni_stroški[[#This Row],[Dejanski stroški]]=\"\"),\"\",Tabela_Mesečni_stroški[[#This Row],[Predvideni stroški]]-Tabela_Mesečni_stroški[[#This Row],[Dejanski stroški]])","v":{"v":-20,"d":"-20 €"}},{"$f":"Tabela_Mesečni_stroški[[#This Row],[Dejanski stroški]]","v":120}]
[null,"Dobrodelno 1","Darila in nakazila dobrodelnim ustanovam",{"v":75,"d":"75 €"},{"v":100,"d":"100 €"},{"$f":"IF(OR(Tabela_Mesečni_stroški[[#This Row],[Predvideni stroški]]=\"\",Tabela_Mesečni_stroški[[#This Row],[Dejanski stroški]]=\"\"),\"\",Tabela_Mesečni_stroški[[#This Row],[Predvideni stroški]]-Tabela_Mesečni_stroški[[#This Row],[Dejanski stroški]])","v":{"v":-25,"d":"-25 €"}},{"$f":"Tabela_Mesečni_stroški[[#This Row],[Dejanski stroški]]","v":100}]
[null,"Dobrodelno 2","Darila in nakazila dobrodelnim ustanovam",{"v":25,"d":"25 €"},{"v":25,"d":"25 €"},{"$f":"IF(OR(Tabela_Mesečni_stroški[[#This Row],[Predvideni stroški]]=\"\",Tabela_Mesečni_stroški[[#This Row],[Dejanski stroški]]=\"\"),\"\",Tabela_Mesečni_stroški[[#This Row],[Predvideni stroški]]-Tabela_Mesečni_stroški[[#This Row],[Dejanski stroški]])","v":{"v":0,"d":"0 €"}},{"$f":"Tabela_Mesečni_stroški[[#This Row],[Dejanski stroški]]","v":25}]
[null,"Darilo 1","Darila in nakazila dobrodelnim ustanovam",null,null,{"$f":"IF(OR(Tabela_Mesečni_stroški[[#This Row],[Predvideni stroški]]=\"\",Tabela_Mesečni_stroški[[#This Row],[Dejanski stroški]]=\"\"),\"\",Tabela_Mesečni_stroški[[#This Row],[Predvideni stroški]]-Tabela_Mesečni_stroški[[#This Row],[Dejanski stroški]])","v":""},{"$f":"Tabela_Mesečni_stroški[[#This Row],[Dejanski stroški]]","v":0}]
[null,"Darilo 2","Darila in nakazila dobrodelnim ustanovam",null,null,{"$f":"IF(OR(Tabela_Mesečni_stroški[[#This Row],[Predvideni stroški]]=\"\",Tabela_Mesečni_stroški[[#This Row],[Dejanski stroški]]=\"\"),\"\",Tabela_Mesečni_stroški[[#This Row],[Predvideni stroški]]-Tabela_Mesečni_stroški[[#This Row],[Dejanski stroški]])","v":""},{"$f":"Tabela_Mesečni_stroški[[#This Row],[Dejanski stroški]]","v":0}]
[null,"Kabelska/satelitska TV","Nastanitev",{"v":100,"d":"100 €"},{"v":100,"d":"100 €"},{"$f":"IF(OR(Tabela_Mesečni_stroški[[#This Row],[Predvideni stroški]]=\"\",Tabela_Mesečni_stroški[[#This Row],[Dejanski stroški]]=\"\"),\"\",Tabela_Mesečni_stroški[[#This Row],[Predvideni stroški]]-Tabela_Mesečni_stroški[[#This Row],[Dejanski stroški]])","v":{"v":0,"d":"0 €"}},{"$f":"Tabela_Mesečni_stroški[[#This Row],[Dejanski stroški]]","v":100}]
[null,"Elektrika","Nastanitev",{"v":45,"d":"45 €"},{"v":50,"d":"50 €"},{"$f":"IF(OR(Tabela_Mesečni_stroški[[#This Row],[Predvideni stroški]]=\"\",Tabela_Mesečni_stroški[[#This Row],[Dejanski stroški]]=\"\"),\"\",Tabela_Mesečni_stroški[[#This Row],[Predvideni stroški]]-Tabela_Mesečni_stroški[[#This Row],[Dejanski stroški]])","v":{"v":-5,"d":"-5 €"}},{"$f":"Tabela_Mesečni_stroški[[#This Row],[Dejanski stroški]]","v":50}]
[null,"Plin","Nastanitev",{"v":300,"d":"300 €"},{"v":400,"d":"400 €"},{"$f":"IF(OR(Tabela_Mesečni_stroški[[#This Row],[Predvideni stroški]]=\"\",Tabela_Mesečni_stroški[[#This Row],[Dejanski stroški]]=\"\"),\"\",Tabela_Mesečni_stroški[[#This Row],[Predvideni stroški]]-Tabela_Mesečni_stroški[[#This Row],[Dejanski stroški]])","v":{"v":-100,"d":"-100 €"}},{"$f":"Tabela_Mesečni_stroški[[#This Row],[Dejanski stroški]]","v":400}]
[null,"Čistilni servis","Nastanitev",{"v":200,"d":"200 €"},null,{"$f":"IF(OR(Tabela_Mesečni_stroški[[#This Row],[Predvideni stroški]]=\"\",Tabela_Mesečni_stroški[[#This Row],[Dejanski stroški]]=\"\"),\"\",Tabela_Mesečni_stroški[[#This Row],[Predvideni stroški]]-Tabela_Mesečni_stroški[[#This Row],[Dejanski stroški]])","v":""},{"$f":"Tabela_Mesečni_stroški[[#This Row],[Dejanski stroški]]","v":0}]
[null,"Vzdrževanje","Nastanitev",{"v":200,"d":"200 €"},{"v":150,"d":"150 €"},{"$f":"IF(OR(Tabela_Mesečni_stroški[[#This Row],[Predvideni stroški]]=\"\",Tabela_Mesečni_stroški[[#This Row],[Dejanski stroški]]=\"\"),\"\",Tabela_Mesečni_stroški[[#This Row],[Predvideni stroški]]-Tabela_Mesečni_stroški[[#This Row],[Dejanski stroški]])","v":{"v":50,"d":"50 €"}},{"$f":"Tabela_Mesečni_stroški[[#This Row],[Dejanski stroški]]","v":150}]
[null,"Hipoteka ali najemnina","Nastanitev",{"v":1700,"d":"1,700 €"},{"v":1700,"d":"1,700 €"},{"$f":"IF(OR(Tabela_Mesečni_stroški[[#This Row],[Predvideni stroški]]=\"\",Tabela_Mesečni_stroški[[#This Row],[Dejanski stroški]]=\"\"),\"\",Tabela_Mesečni_stroški[[#This Row],[Predvideni stroški]]-Tabela_Mesečni_stroški[[#This Row],[Dejanski stroški]])","v":{"v":0,"d":"0 €"}},{"$f":"Tabela_Mesečni_stroški[[#This Row],[Dejanski stroški]]","v":1700}]
[null,"Zemeljski plin/nafta","Nastanitev",null,null,{"$f":"IF(OR(Tabela_Mesečni_stroški[[#This Row],[Predvideni stroški]]=\"\",Tabela_Mesečni_stroški[[#This Row],[Dejanski stroški]]=\"\"),\"\",Tabela_Mesečni_stroški[[#This Row],[Predvideni stroški]]-Tabela_Mesečni_stroški[[#This Row],[Dejanski stroški]])","v":""},{"$f":"Tabela_Mesečni_stroški[[#This Row],[Dejanski stroški]]","v":0}]
[null,"Splet/internet","Nastanitev",{"v":100,"d":"100 €"},{"v":100,"d":"100 €"},{"$f":"IF(OR(Tabela_Mesečni_stroški[[#This Row],[Predvideni stroški]]=\"\",Tabela_Mesečni_stroški[[#This Row],[Dejanski stroški]]=\"\"),\"\",Tabela_Mesečni_stroški[[#This Row],[Predvideni stroški]]-Tabela_Mesečni_stroški[[#This Row],[Dejanski stroški]])","v":{"v":0,"d":"0 €"}},{"$f":"Tabela_Mesečni_stroški[[#This Row],[Dejanski stroški]]","v":100}]
[null,"Telefon (mobilni)","Nastanitev",{"v":60,"d":"60 €"},{"v":60,"d":"60 €"},{"$f":"IF(OR(Tabela_Mesečni_stroški[[#This Row],[Predvideni stroški]]=\"\",Tabela_Mesečni_stroški[[#This Row],[Dejanski stroški]]=\"\"),\"\",Tabela_Mesečni_stroški[[#This Row],[Predvideni stroški]]-Tabela_Mesečni_stroški[[#This Row],[Dejanski stroški]])","v":{"v":0,"d":"0 €"}},{"$f":"Tabela_Mesečni_stroški[[#This Row],[Dejanski stroški]]","v":60}]
[null,"Telefon (dom)","Nastanitev",{"v":35,"d":"35 €"},{"v":39,"d":"39 €"},{"$f":"IF(OR(Tabela_Mesečni_stroški[[#This Row],[Predvideni stroški]]=\"\",Tabela_Mesečni_stroški[[#This Row],[Dejanski stroški]]=\"\"),\"\",Tabela_Mesečni_stroški[[#This Row],[Predvideni stroški]]-Tabela_Mesečni_stroški[[#This Row],[Dejanski stroški]])","v":{"v":-4,"d":"-4 €"}},{"$f":"Tabela_Mesečni_stroški[[#This Row],[Dejanski stroški]]","v":39}]
[null,"Zaloge","Nastanitev",{"v":40,"d":"40 €"},{"v":55,"d":"55 €"},{"$f":"IF(OR(Tabela_Mesečni_stroški[[#This Row],[Predvideni stroški]]=\"\",Tabela_Mesečni_stroški[[#This Row],[Dejanski stroški]]=\"\"),\"\",Tabela_Mesečni_stroški[[#This Row],[Predvideni stroški]]-Tabela_Mesečni_stroški[[#This Row],[Dejanski stroški]])","v":{"v":-15,"d":"-15 €"}},{"$f":"Tabela_Mesečni_stroški[[#This Row],[Dejanski stroški]]","v":55}]
[null,"Odvoz smeti in recikliranje","Nastanitev",{"v":25,"d":"25 €"},{"v":22,"d":"22 €"},{"$f":"IF(OR(Tabela_Mesečni_stroški[[#This Row],[Predvideni stroški]]=\"\",Tabela_Mesečni_stroški[[#This Row],[Dejanski stroški]]=\"\"),\"\",Tabela_Mesečni_stroški[[#This Row],[Predvideni stroški]]-Tabela_Mesečni_stroški[[#This Row],[Dejanski stroški]])","v":{"v":3,"d":"3 €"}},{"$f":"Tabela_Mesečni_stroški[[#This Row],[Dejanski stroški]]","v":22}]
[null,"Voda in kanalščina","Nastanitev",{"v":25,"d":"25 €"},{"v":26,"d":"26 €"},{"$f":"IF(OR(Tabela_Mesečni_stroški[[#This Row],[Predvideni stroški]]=\"\",Tabela_Mesečni_stroški[[#This Row],[Dejanski stroški]]=\"\"),\"\",Tabela_Mesečni_stroški[[#This Row],[Predvideni stroški]]-Tabela_Mesečni_stroški[[#This Row],[Dejanski stroški]])","v":{"v":-1,"d":"-1 €"}},{"$f":"Tabela_Mesečni_stroški[[#This Row],[Dejanski stroški]]","v":26}]
[null,"Zdravje","Zavarovanje",{"v":400,"d":"400 €"},{"v":400,"d":"400 €"},{"$f":"IF(OR(Tabela_Mesečni_stroški[[#This Row],[Predvideni stroški]]=\"\",Tabela_Mesečni_stroški[[#This Row],[Dejanski stroški]]=\"\"),\"\",Tabela_Mesečni_stroški[[#This Row],[Predvideni stroški]]-Tabela_Mesečni_stroški[[#This Row],[Dejanski stroški]])","v":{"v":0,"d":"0 €"}},{"$f":"Tabela_Mesečni_stroški[[#This Row],[Dejanski stroški]]","v":400}]
[null,"Dom","Zavarovanje",{"v":400,"d":"400 €"},{"v":400,"d":"400 €"},{"$f":"IF(OR(Tabela_Mesečni_stroški[[#This Row],[Predvideni stroški]]=\"\",Tabela_Mesečni_stroški[[#This Row],[Dejanski stroški]]=\"\"),\"\",Tabela_Mesečni_stroški[[#This Row],[Predvideni stroški]]-Tabela_Mesečni_stroški[[#This Row],[Dejanski stroški]])","v":{"v":0,"d":"0 €"}},{"$f":"Tabela_Mesečni_stroški[[#This Row],[Dejanski stroški]]","v":400}]
[null,"Življenjsko","Zavarovanje",{"v":100,"d":"100 €"},{"v":100,"d":"100 €"},{"$f":"IF(OR(Tabela_Mesečni_stroški[[#This Row],[Predvideni stroški]]=\"\",Tabela_Mesečni_stroški[[#This Row],[Dejanski stroški]]=\"\"),\"\",Tabela_Mesečni_stroški[[#This Row],[Predvideni stroški]]-Tabela_Mesečni_stroški[[#This Row],[Dejanski stroški]])","v":{"v":0,"d":"0 €"}},{"$f":"Tabela_Mesečni_stroški[[#This Row],[Dejanski stroški]]","v":100}]
[null,"Kreditna kartica 1","Posojila",{"v":200,"d":"200 €"},{"v":200,"d":"200 €"},{"$f":"IF(OR(Tabela_Mesečni_stroški[[#This Row],[Predvideni stroški]]=\"\",Tabela_Mesečni_stroški[[#This Row],[Dejanski stroški]]=\"\"),\"\",Tabela_Mesečni_stroški[[#This Row],[Predvideni stroški]]-Tabela_Mesečni_stroški[[#This Row],[Dejanski stroški]])","v":{"v":0,"d":"0 €"}},{"$f":"Tabela_Mesečni_stroški[[#This Row],[Dejanski stroški]]","v":200}]
[null,"Kreditna kartica 2","Posojila",null,null,{"$f":"IF(OR(Tabela_Mesečni_stroški[[#This Row],[Predvideni stroški]]=\"\",Tabela_Mesečni_stroški[[#This Row],[Dejanski stroški]]=\"\"),\"\",Tabela_Mesečni_stroški[[#This Row],[Predvideni stroški]]-Tabela_Mesečni_stroški[[#This Row],[Dejanski stroški]])","v":""},{"$f":"Tabela_Mesečni_stroški[[#This Row],[Dejanski stroški]]","v":0}]
[null,"Kreditna kartica 3","Posojila",null,null,{"$f":"IF(OR(Tabela_Mesečni_stroški[[#This Row],[Predvideni stroški]]=\"\",Tabela_Mesečni_stroški[[#This Row],[Dejanski stroški]]=\"\"),\"\",Tabela_Mesečni_stroški[[#This Row],[Predvideni stroški]]-Tabela_Mesečni_stroški[[#This Row],[Dejanski stroški]])","v":""},{"$f":"Tabela_Mesečni_stroški[[#This Row],[Dejanski stroški]]","v":0}]
[null,"Osebno","Posojila",null,null,{"$f":"IF(OR(Tabela_Mesečni_stroški[[#This Row],[Predvideni stroški]]=\"\",Tabela_Mesečni_stroški[[#This Row],[Dejanski stroški]]=\"\"),\"\",Tabela_Mesečni_stroški[[#This Row],[Predvideni stroški]]-Tabela_Mesečni_stroški[[#This Row],[Dejanski stroški]])","v":""},{"$f":"Tabela_Mesečni_stroški[[#This Row],[Dejanski stroški]]","v":0}]
[null,"Študentsko","Posojila",null,null,{"$f":"IF(OR(Tabela_Mesečni_stroški[[#This Row],[Predvideni stroški]]=\"\",Tabela_Mesečni_stroški[[#This Row],[Dejanski stroški]]=\"\"),\"\",Tabela_Mesečni_stroški[[#This Row],[Predvideni stroški]]-Tabela_Mesečni_stroški[[#This Row],[Dejanski stroški]])","v":""},{"$f":"Tabela_Mesečni_stroški[[#This Row],[Dejanski stroški]]","v":0}]
[null,"Oblačila","Osebna nega",{"v":150,"d":"150 €"},{"v":140,"d":"140 €"},{"$f":"IF(OR(Tabela_Mesečni_stroški[[#This Row],[Predvideni stroški]]=\"\",Tabela_Mesečni_stroški[[#This Row],[Dejanski stroški]]=\"\"),\"\",Tabela_Mesečni_stroški[[#This Row],[Predvideni stroški]]-Tabela_Mesečni_stroški[[#This Row],[Dejanski stroški]])","v":{"v":10,"d":"10 €"}},{"$f":"Tabela_Mesečni_stroški[[#This Row],[Dejanski stroški]]","v":140}]
[null,"Kemična čistilnica","Osebna nega",null,null,{"$f":"IF(OR(Tabela_Mesečni_stroški[[#This Row],[Predvideni stroški]]=\"\",Tabela_Mesečni_stroški[[#This Row],[Dejanski stroški]]=\"\"),\"\",Tabela_Mesečni_stroški[[#This Row],[Predvideni stroški]]-Tabela_Mesečni_stroški[[#This Row],[Dejanski stroški]])","v":""},{"$f":"Tabela_Mesečni_stroški[[#This Row],[Dejanski stroški]]","v":0}]
[null,"Lasje/nohti","Osebna nega",null,null,{"$f":"IF(OR(Tabela_Mesečni_stroški[[#This Row],[Predvideni stroški]]=\"\",Tabela_Mesečni_stroški[[#This Row],[Dejanski stroški]]=\"\"),\"\",Tabela_Mesečni_stroški[[#This Row],[Predvideni stroški]]-Tabela_Mesečni_stroški[[#This Row],[Dejanski stroški]])","v":""},{"$f":"Tabela_Mesečni_stroški[[#This Row],[Dejanski stroški]]","v":0}]
[null,"Fitnes","Osebna nega",null,null,{"$f":"IF(OR(Tabela_Mesečni_stroški[[#This Row],[Predvideni stroški]]=\"\",Tabela_Mesečni_stroški[[#This Row],[Dejanski stroški]]=\"\"),\"\",Tabela_Mesečni_stroški[[#This Row],[Predvideni stroški]]-Tabela_Mesečni_stroški[[#This Row],[Dejanski stroški]])","v":""},{"$f":"Tabela_Mesečni_stroški[[#This Row],[Dejanski stroški]]","v":0}]
[null,"Zdravstvene potrebščine","Osebna nega",null,null,{"$f":"IF(OR(Tabela_Mesečni_stroški[[#This Row],[Predvideni stroški]]=\"\",Tabela_Mesečni_stroški[[#This Row],[Dejanski stroški]]=\"\"),\"\",Tabela_Mesečni_stroški[[#This Row],[Predvideni stroški]]-Tabela_Mesečni_stroški[[#This Row],[Dejanski stroški]])","v":""},{"$f":"Tabela_Mesečni_stroški[[#This Row],[Dejanski stroški]]","v":0}]
[null,"Hrana","Hišni ljubljenčki",{"v":150,"d":"150 €"},{"v":75,"d":"75 €"},{"$f":"IF(OR(Tabela_Mesečni_stroški[[#This Row],[Predvideni stroški]]=\"\",Tabela_Mesečni_stroški[[#This Row],[Dejanski stroški]]=\"\"),\"\",Tabela_Mesečni_stroški[[#This Row],[Predvideni stroški]]-Tabela_Mesečni_stroški[[#This Row],[Dejanski stroški]])","v":{"v":75,"d":"75 €"}},{"$f":"Tabela_Mesečni_stroški[[#This Row],[Dejanski stroški]]","v":75}]
[null,"Nega","Hišni ljubljenčki",{"v":20,"d":"20 €"},{"v":25,"d":"25 €"},{"$f":"IF(OR(Tabela_Mesečni_stroški[[#This Row],[Predvideni stroški]]=\"\",Tabela_Mesečni_stroški[[#This Row],[Dejanski stroški]]=\"\"),\"\",Tabela_Mesečni_stroški[[#This Row],[Predvideni stroški]]-Tabela_Mesečni_stroški[[#This Row],[Dejanski stroški]])","v":{"v":-5,"d":"-5 €"}},{"$f":"Tabela_Mesečni_stroški[[#This Row],[Dejanski stroški]]","v":25}]
[null,"Zdravstvene potrebščine","Hišni ljubljenčki",null,null,{"$f":"IF(OR(Tabela_Mesečni_stroški[[#This Row],[Predvideni stroški]]=\"\",Tabela_Mesečni_stroški[[#This Row],[Dejanski stroški]]=\"\"),\"\",Tabela_Mesečni_stroški[[#This Row],[Predvideni stroški]]-Tabela_Mesečni_stroški[[#This Row],[Dejanski stroški]])","v":""},{"$f":"Tabela_Mesečni_stroški[[#This Row],[Dejanski stroški]]","v":0}]
[null,"Igrače","Hišni ljubljenčki",null,null,{"$f":"IF(OR(Tabela_Mesečni_stroški[[#This Row],[Predvideni stroški]]=\"\",Tabela_Mesečni_stroški[[#This Row],[Dejanski stroški]]=\"\"),\"\",Tabela_Mesečni_stroški[[#This Row],[Predvideni stroški]]-Tabela_Mesečni_stroški[[#This Row],[Dejanski stroški]])","v":""},{"$f":"Tabela_Mesečni_stroški[[#This Row],[Dejanski stroški]]","v":0}]
[null,"Naložbeni račun","Prihranki",{"v":200,"d":"200 €"},{"v":200,"d":"200 €"},{"$f":"IF(OR(Tabela_Mesečni_stroški[[#This Row],[Predvideni stroški]]=\"\",Tabela_Mesečni_stroški[[#This Row],[Dejanski stroški]]=\"\"),\"\",Tabela_Mesečni_stroški[[#This Row],[Predvideni stroški]]-Tabela_Mesečni_stroški[[#This Row],[Dejanski stroški]])","v":{"v":0,"d":"0 €"}},{"$f":"Tabela_Mesečni_stroški[[#This Row],[Dejanski stroški]]","v":200}]
[null,"Varčevalni račun","Prihranki",null,null,{"$f":"IF(OR(Tabela_Mesečni_stroški[[#This Row],[Predvideni stroški]]=\"\",Tabela_Mesečni_stroški[[#This Row],[Dejanski stroški]]=\"\"),\"\",Tabela_Mesečni_stroški[[#This Row],[Predvideni stroški]]-Tabela_Mesečni_stroški[[#This Row],[Dejanski stroški]])","v":""},{"$f":"Tabela_Mesečni_stroški[[#This Row],[Dejanski stroški]]","v":0}]
[null,"Zvezno","Davki",{"v":300,"d":"300 €"},{"v":300,"d":"300 €"},{"$f":"IF(OR(Tabela_Mesečni_stroški[[#This Row],[Predvideni stroški]]=\"\",Tabela_Mesečni_stroški[[#This Row],[Dejanski stroški]]=\"\"),\"\",Tabela_Mesečni_stroški[[#This Row],[Predvideni stroški]]-Tabela_Mesečni_stroški[[#This Row],[Dejanski stroški]])","v":{"v":0,"d":"0 €"}},{"$f":"Tabela_Mesečni_stroški[[#This Row],[Dejanski stroški]]","v":300}]
[null,"Lokalno","Davki",null,null,{"$f":"IF(OR(Tabela_Mesečni_stroški[[#This Row],[Predvideni stroški]]=\"\",Tabela_Mesečni_stroški[[#This Row],[Dejanski stroški]]=\"\"),\"\",Tabela_Mesečni_stroški[[#This Row],[Predvideni stroški]]-Tabela_Mesečni_stroški[[#This Row],[Dejanski stroški]])","v":""},{"$f":"Tabela_Mesečni_stroški[[#This Row],[Dejanski stroški]]","v":0}]
[null,"Državno","Davki",null,null,{"$f":"IF(OR(Tabela_Mesečni_stroški[[#This Row],[Predvideni stroški]]=\"\",Tabela_Mesečni_stroški[[#This Row],[Dejanski stroški]]=\"\"),\"\",Tabela_Mesečni_stroški[[#This Row],[Predvideni stroški]]-Tabela_Mesečni_stroški[[#This Row],[Dejanski stroški]])","v":""},{"$f":"Tabela_Mesečni_stroški[[#This Row],[Dejanski stroški]]","v":0}]
[null,"Avtobus/taksi","Prevoz",{"v":100,"d":"100 €"},{"v":150,"d":"150 €"},{"$f":"IF(OR(Tabela_Mesečni_stroški[[#This Row],[Predvideni stroški]]=\"\",Tabela_Mesečni_stroški[[#This Row],[Dejanski stroški]]=\"\"),\"\",Tabela_Mesečni_stroški[[#This Row],[Predvideni stroški]]-Tabela_Mesečni_stroški[[#This Row],[Dejanski stroški]])","v":{"v":-50,"d":"-50 €"}},{"$f":"Tabela_Mesečni_stroški[[#This Row],[Dejanski stroški]]","v":150}]
[null,"Gorivo","Prevoz",{"v":450,"d":"450 €"},{"v":400,"d":"400 €"},{"$f":"IF(OR(Tabela_Mesečni_stroški[[#This Row],[Predvideni stroški]]=\"\",Tabela_Mesečni_stroški[[#This Row],[Dejanski stroški]]=\"\"),\"\",Tabela_Mesečni_stroški[[#This Row],[Predvideni stroški]]-Tabela_Mesečni_stroški[[#This Row],[Dejanski stroški]])","v":{"v":50,"d":"50 €"}},{"$f":"Tabela_Mesečni_stroški[[#This Row],[Dejanski stroški]]","v":400}]
[null,"Zavarovanje","Prevoz",{"v":300,"d":"300 €"},{"v":300,"d":"300 €"},{"$f":"IF(OR(Tabela_Mesečni_stroški[[#This Row],[Predvideni stroški]]=\"\",Tabela_Mesečni_stroški[[#This Row],[Dejanski stroški]]=\"\"),\"\",Tabela_Mesečni_stroški[[#This Row],[Predvideni stroški]]-Tabela_Mesečni_stroški[[#This Row],[Dejanski stroški]])","v":{"v":0,"d":"0 €"}},{"$f":"Tabela_Mesečni_stroški[[#This Row],[Dejanski stroški]]","v":300}]
[null,"Registracija ","Prevoz",{"v":25,"d":"25 €"},{"v":25,"d":"25 €"},{"$f":"IF(OR(Tabela_Mesečni_stroški[[#This Row],[Predvideni stroški]]=\"\",Tabela_Mesečni_stroški[[#This Row],[Dejanski stroški]]=\"\"),\"\",Tabela_Mesečni_stroški[[#This Row],[Predvideni stroški]]-Tabela_Mesečni_stroški[[#This Row],[Dejanski stroški]])","v":{"v":0,"d":"0 €"}},{"$f":"Tabela_Mesečni_stroški[[#This Row],[Dejanski stroški]]","v":25}]
[null,"Vzdrževanje","Prevoz",{"v":100,"d":"100 €"},{"v":50,"d":"50 €"},{"$f":"IF(OR(Tabela_Mesečni_stroški[[#This Row],[Predvideni stroški]]=\"\",Tabela_Mesečni_stroški[[#This Row],[Dejanski stroški]]=\"\"),\"\",Tabela_Mesečni_stroški[[#This Row],[Predvideni stroški]]-Tabela_Mesečni_stroški[[#This Row],[Dejanski stroški]])","v":{"v":50,"d":"50 €"}},{"$f":"Tabela_Mesečni_stroški[[#This Row],[Dejanski stroški]]","v":50}]
[null,"Parkirnina","Prevoz",null,null,{"$f":"IF(OR(Tabela_Mesečni_stroški[[#This Row],[Predvideni stroški]]=\"\",Tabela_Mesečni_stroški[[#This Row],[Dejanski stroški]]=\"\"),\"\",Tabela_Mesečni_stroški[[#This Row],[Predvideni stroški]]-Tabela_Mesečni_stroški[[#This Row],[Dejanski stroški]])","v":""},{"$f":"Tabela_Mesečni_stroški[[#This Row],[Dejanski stroški]]","v":0}]
[null,"Plačilo vozila","Prevoz",{"v":450,"d":"450 €"},{"v":450,"d":"450 €"},{"$f":"IF(OR(Tabela_Mesečni_stroški[[#This Row],[Predvideni stroški]]=\"\",Tabela_Mesečni_stroški[[#This Row],[Dejanski stroški]]=\"\"),\"\",Tabela_Mesečni_stroški[[#This Row],[Predvideni stroški]]-Tabela_Mesečni_stroški[[#This Row],[Dejanski stroški]])","v":{"v":0,"d":"0 €"}},{"$f":"Tabela_Mesečni_stroški[[#This Row],[Dejanski stroški]]","v":450}]

{"sheet":"Dodatni podatki","index":3,"n_rows":17,"n_cols":6,"rows_kept":17}
[{"$nulls":5}," "]
[null,"Vrtilna tabela za grafikon proračuna",null,null,"Seznam kategorij"]
[]
[null,"Kategorije","Strošek",null,"Če želite dodati kategorijo, jo vnesite spodaj."]
[null,"Hišni ljubljenčki",{"v":100,"d":"100 €"},null,"Otroci"]
[null,"Darila in nakazila dobrodelnim ustanovam",{"v":125,"d":"125 €"},null,"Razvedrilo"]
[null,"Otroci",{"v":140,"d":"140 €"},null,"Hrana"]
[null,"Osebna nega",{"v":140,"d":"140 €"},null,"Darila in nakazila dobrodelnim ustanovam"]
[null,"Posojila",{"v":200,"d":"200 €"},null,"Nastanitev"]
[null,"Prihranki",{"v":200,"d":"200 €"},null,"Zavarovanje"]
[null,"Davki",{"v":300,"d":"300 €"},null,"Posojila"]
[null,"Razvedrilo",{"v":358,"d":"358 €"},null,"Osebna nega"]
[null,"Zavarovanje",{"v":900,"d":"900 €"},null,"Hišni ljubljenčki"]
[null,"Hrana",{"v":1320,"d":"1,320 €"},null,"Prihranki"]
[null,"Prevoz",{"v":1375,"d":"1,375 €"},null,"Davki"]
[null,"Nastanitev",{"v":2702,"d":"2,702 €"},null,"Prevoz"]
[null,"Grand Total",{"v":7860,"d":"7,860 €"}]